[Event "*** Titled Tuesday Blitz"]
[Site "Chess.com"]
[Date "2019.06.04"]
[Round "10"]
[White "SaraciNderim"]
[Black "GMKrikor"]
[Result "1/2-1/2"]
[WhiteElo "2855"]
[BlackElo "2719"]
[TimeControl "180+2"]
[EndTime "15:28:45 PDT"]
[Termination "Game drawn by 50-move rule"]

1. b3 {[%clk 0:03:01.9]} 1... Nf6 {[%clk 0:02:51.3]} 2. Bb2 {[%clk 0:03:01.7]}
2... c5 {[%clk 0:02:52.6]} 3. Nf3 {[%clk 0:03:02.8]} 3... Nc6 {[%clk 0:02:51.8]}
4. e3 {[%clk 0:03:04.1]} 4... g6 {[%clk 0:02:52.2]} 5. d4 {[%clk 0:03:04.9]}
5... cxd4 {[%clk 0:02:52.6]} 6. Nxd4 {[%clk 0:03:06.8]} 6... Bg7 {[%clk
0:02:53.1]} 7. Be2 {[%clk 0:03:07.9]} 7... O-O {[%clk 0:02:52.6]} 8. c4 {[%clk
0:03:08.2]} 8... d5 {[%clk 0:02:22.8]} 9. O-O {[%clk 0:03:08.5]} 9... Nxd4
{[%clk 0:02:02.2]} 10. Bxd4 {[%clk 0:02:30.3]} 10... dxc4 {[%clk 0:02:02.2]} 11.
Bxc4 {[%clk 0:02:31.2]} 11... a6 {[%clk 0:02:00.3]} 12. Be2 {[%clk 0:02:26.7]}
12... Qc7 {[%clk 0:01:08.4]} 13. Qc1 {[%clk 0:02:06.2]} 13... Nd5 {[%clk
0:00:33.7]} 14. Bxg7 {[%clk 0:01:57.5]} 14... Kxg7 {[%clk 0:00:35.6]} 15. Qb2+
{[%clk 0:01:42.4]} 15... Kg8 {[%clk 0:00:35.1]} 16. Rc1 {[%clk 0:01:42.8]} 16...
Qb6 {[%clk 0:00:23.3]} 17. Bf3 {[%clk 0:01:42]} 17... Be6 {[%clk 0:00:22.9]} 18.
Nc3 {[%clk 0:01:37.8]} 18... Nxc3 {[%clk 0:00:22.4]} 19. Qxc3 {[%clk 0:01:32.3]}
19... Rac8 {[%clk 0:00:23.3]} 20. Qe5 {[%clk 0:01:33]} 20... Qb4 {[%clk
0:00:15]} 21. h4 {[%clk 0:01:26.5]} 21... a5 {[%clk 0:00:10.8]} 22. h5 {[%clk
0:01:26.2]} 22... Qd6 {[%clk 0:00:05.3]} 23. Qxd6 {[%clk 0:01:26.1]} 23... exd6
{[%clk 0:00:06.5]} 24. hxg6 {[%clk 0:01:26.7]} 24... hxg6 {[%clk 0:00:07.1]} 25.
Bxb7 {[%clk 0:01:27.8]} 25... Rxc1+ {[%clk 0:00:03.3]} 26. Rxc1 {[%clk
0:01:29.7]} 26... Kg7 {[%clk 0:00:04.6]} 27. Rc7 {[%clk 0:01:27.8]} 27... Kf6
{[%clk 0:00:05]} 28. Be4 {[%clk 0:01:26.4]} 28... Rb8 {[%clk 0:00:04.6]} 29. Bd3
{[%clk 0:01:26.1]} 29... a4 {[%clk 0:00:05.4]} 30. bxa4 {[%clk 0:01:24.9]} 30...
Bxa2 {[%clk 0:00:07.3]} 31. a5 {[%clk 0:01:26.1]} 31... Bd5 {[%clk 0:00:05.5]}
32. a6 {[%clk 0:01:26.6]} 32... Rb3 {[%clk 0:00:05.4]} 33. Be2 {[%clk
0:01:20.5]} 33... Rb2 {[%clk 0:00:04.1]} 34. Bg4 {[%clk 0:01:16.1]} 34... Rb1+
{[%clk 0:00:03.7]} 35. Kh2 {[%clk 0:01:16.9]} 35... Rb2 {[%clk 0:00:05.4]} 36.
Kg3 {[%clk 0:01:17.8]} 36... Ra2 {[%clk 0:00:06.6]} 37. a7 {[%clk 0:01:18.6]}
37... Ke5 {[%clk 0:00:04.7]} 38. Bd7 {[%clk 0:01:12.7]} 38... f5 {[%clk
0:00:03.8]} 39. Be8 {[%clk 0:01:07.1]} 39... g5 {[%clk 0:00:03.9]} 40. f4+
{[%clk 0:01:06.1]} 40... gxf4+ {[%clk 0:00:05.1]} 41. exf4+ {[%clk 0:01:08]}
41... Kd4 {[%clk 0:00:04.7]} 42. Bc6 {[%clk 0:00:39.5]} 42... Rxg2+ {[%clk
0:00:04.9]} 43. Kh4 {[%clk 0:00:32.2]} 43... Ra2 {[%clk 0:00:03.4]} 44. a8=Q
{[%clk 0:00:30.2]} 44... Rxa8 {[%clk 0:00:05.3]} 45. Bxa8 {[%clk 0:00:31.6]}
45... Bxa8 {[%clk 0:00:06.8]} 46. Kg5 {[%clk 0:00:32.4]} 46... Be4 {[%clk
0:00:08]} 47. Rd7 {[%clk 0:00:27.5]} 47... d5 {[%clk 0:00:07.2]} 48. Kf6 {[%clk
0:00:28.6]} 48... Kd3 {[%clk 0:00:05.7]} 49. Ke5 {[%clk 0:00:29.4]} 49... Ke3
{[%clk 0:00:07.3]} 50. Rd6 {[%clk 0:00:29.1]} 50... Kf3 {[%clk 0:00:07.9]} 51.
Rd8 {[%clk 0:00:20.3]} 51... Ke3 {[%clk 0:00:03.9]} 52. Rd7 {[%clk 0:00:08.8]}
52... Kf3 {[%clk 0:00:05.2]} 53. Ra7 {[%clk 0:00:09.8]} 53... Kg3 {[%clk
0:00:04]} 54. Ra3+ {[%clk 0:00:07.3]} 54... Kg4 {[%clk 0:00:05.4]} 55. Ra1
{[%clk 0:00:08.4]} 55... Kg3 {[%clk 0:00:05.7]} 56. Rf1 {[%clk 0:00:09.1]} 56...
Kg2 {[%clk 0:00:03.9]} 57. Rc1 {[%clk 0:00:09.3]} 57... Kg3 {[%clk 0:00:05.3]}
58. Rc3+ {[%clk 0:00:09.7]} 58... Kg4 {[%clk 0:00:06.7]} 59. Re3 {[%clk
0:00:10.2]} 59... Bh1 {[%clk 0:00:05.7]} 60. Rb3 {[%clk 0:00:07.3]} 60... Be4
{[%clk 0:00:06.6]} 61. Ra3 {[%clk 0:00:08.5]} 61... Bh1 {[%clk 0:00:07.6]} 62.
Ra8 {[%clk 0:00:06.7]} 62... Be4 {[%clk 0:00:08.1]} 63. Rh8 {[%clk 0:00:07.5]}
63... Kg3 {[%clk 0:00:08.8]} 64. Rf8 {[%clk 0:00:06.3]} 64... Kg4 {[%clk
0:00:09.9]} 65. Rg8+ {[%clk 0:00:06.8]} 65... Kf3 {[%clk 0:00:10.7]} 66. Rg5
{[%clk 0:00:08.5]} 66... Kf2 {[%clk 0:00:08]} 67. Rg7 {[%clk 0:00:06.8]} 67...
Kf3 {[%clk 0:00:09]} 68. Rb7 {[%clk 0:00:07.9]} 68... Kg3 {[%clk 0:00:09.8]} 69.
Rb3+ {[%clk 0:00:08.1]} 69... Kg4 {[%clk 0:00:11.2]} 70. Ra3 {[%clk 0:00:08.4]}
70... Bh1 {[%clk 0:00:11.5]} 71. Kd4 {[%clk 0:00:07.4]} 71... Kxf4 {[%clk
0:00:08.1]} 72. Ra1 {[%clk 0:00:08]} 72... Be4 {[%clk 0:00:08.3]} 73. Rf1+
{[%clk 0:00:08.4]} 73... Kg3 {[%clk 0:00:09.8]} 74. Ke3 {[%clk 0:00:09.4]} 74...
Kg4 {[%clk 0:00:09.2]} 75. Rg1+ {[%clk 0:00:09.8]} 75... Kh5 {[%clk 0:00:08.5]}
76. Kf4 {[%clk 0:00:10.6]} 76... d4 {[%clk 0:00:06.2]} 77. Rg5+ {[%clk
0:00:10.1]} 77... Kh6 {[%clk 0:00:07]} 78. Rg3 {[%clk 0:00:05.9]} 78... d3
{[%clk 0:00:08.2]} 79. Ke3 {[%clk 0:00:07.1]} 79... Kh5 {[%clk 0:00:05]} 80. Rg1
{[%clk 0:00:07.5]} 80... Kh6 {[%clk 0:00:06.1]} 81. Kf4 {[%clk 0:00:07.4]} 81...
Kh5 {[%clk 0:00:07]} 82. Rf1 {[%clk 0:00:07.7]} 82... Kh6 {[%clk 0:00:08]} 83.
Rf2 {[%clk 0:00:08.8]} 83... Kh5 {[%clk 0:00:08.6]} 84. Rf1 {[%clk 0:00:07.6]}
84... Kh6 {[%clk 0:00:09.7]} 85. Rg1 {[%clk 0:00:08.6]} 85... Kh5 {[%clk
0:00:10.6]} 86. Ke5 {[%clk 0:00:09.4]} 86... Kh4 {[%clk 0:00:08]} 87. Kf4 {[%clk
0:00:10.4]} 87... Kh3 {[%clk 0:00:09.6]} 88. Ke3 {[%clk 0:00:11.2]} 88... Kh2
{[%clk 0:00:10.3]} 89. Kf2 {[%clk 0:00:11.5]} 89... Kh3 {[%clk 0:00:09.7]} 90.
Rg3+ {[%clk 0:00:10.6]} 90... Kh4 {[%clk 0:00:09.5]} 91. Rg8 {[%clk 0:00:11.1]}
91... f4 {[%clk 0:00:05.8]} 92. Rg1 {[%clk 0:00:09.7]} 92... Kh5 {[%clk
0:00:04.4]} 93. Re1 {[%clk 0:00:08.1]} 93... Bg6 {[%clk 0:00:03]} 94. Kf3 {[%clk
0:00:08.2]} 94... Kg5 {[%clk 0:00:04.6]} 95. Re5+ {[%clk 0:00:08.4]} 95... Bf5
{[%clk 0:00:04.9]} 96. Rd5 {[%clk 0:00:08.7]} 96... Kf6 {[%clk 0:00:04.4]} 97.
Kxf4 {[%clk 0:00:09.6]} 97... Bg6 {[%clk 0:00:04.7]} 98. Rd6+ {[%clk 0:00:10.7]}
98... Kf7 {[%clk 0:00:06.2]} 99. Ke5 {[%clk 0:00:11.6]} 99... d2 {[%clk
0:00:05.1]} 100. Rxd2 {[%clk 0:00:11.7]} 100... Kg7 {[%clk 0:00:04.6]} 101. Rf2
{[%clk 0:00:11.4]} 101... Bh7 {[%clk 0:00:05.2]} 102. Ke6 {[%clk 0:00:12.1]}
102... Bg8+ {[%clk 0:00:05.4]} 103. Ke7 {[%clk 0:00:12.4]} 103... Bh7 {[%clk
0:00:07.3]} 104. Rg2+ {[%clk 0:00:12.6]} 104... Kh8 {[%clk 0:00:08.1]} 105. Kf6
{[%clk 0:00:12.1]} 105... Bg8 {[%clk 0:00:08.8]} 106. Kg5 {[%clk 0:00:13.2]}
106... Bh7 {[%clk 0:00:08.3]} 107. Rf2 {[%clk 0:00:13.9]} 107... Bg8 {[%clk
0:00:06.9]} 108. Rb2 {[%clk 0:00:14.3]} 108... Bh7 {[%clk 0:00:07.5]} 109. Rb7
{[%clk 0:00:13.2]} 109... Bg8 {[%clk 0:00:08.3]} 110. Kg6 {[%clk 0:00:13.4]}
110... Bc4 {[%clk 0:00:07.3]} 111. Rh7+ {[%clk 0:00:13.7]} 111... Kg8 {[%clk
0:00:08.2]} 112. Rh4 {[%clk 0:00:15.6]} 112... Bd3+ {[%clk 0:00:07]} 113. Kf6
{[%clk 0:00:16.5]} 113... Bh7 {[%clk 0:00:07.4]} 114. Rh2 {[%clk 0:00:07.9]}
114... Kh8 {[%clk 0:00:07.8]} 115. Kg5 {[%clk 0:00:08.1]} 115... Kg7 {[%clk
0:00:08.2]} 116. Rd2 {[%clk 0:00:06.6]} 116... Kh8 {[%clk 0:00:07.8]} 117. Rd7
{[%clk 0:00:07.3]} 117... Bg8 {[%clk 0:00:08.1]} 118. Kg6 {[%clk 0:00:08.2]}
118... Bb3 {[%clk 0:00:07.2]} 119. Rd4 {[%clk 0:00:06.9]} 119... Ba2 {[%clk
0:00:05.5]} 120. Rh4+ {[%clk 0:00:06.1]} 120... Kg8 {[%clk 0:00:06.7]} 121. Rh1
{[%clk 0:00:07.1]} 121... Bc4 {[%clk 0:00:06.4]} 122. Kh6 {[%clk 0:00:06.1]}
122... Kh8 {[%clk 0:00:05.2]} 123. Kg6+ {[%clk 0:00:06.4]} 123... Kg8 {[%clk
0:00:06.2]} 124. Rc1 {[%clk 0:00:06.8]} 124... Bd3+ {[%clk 0:00:07.2]} 125. Kh6
{[%clk 0:00:07.7]} 125... Kf7 {[%clk 0:00:04.5]} 126. Kg5 {[%clk 0:00:06.7]}
126... Be4 {[%clk 0:00:03.4]} 127. Kf4 {[%clk 0:00:07.5]} 127... Bd3 {[%clk
0:00:04.7]} 128. Ke5 {[%clk 0:00:08.1]} 128... Kg7 {[%clk 0:00:04.8]} 129. Rc3
{[%clk 0:00:08.5]} 129... Bh7 {[%clk 0:00:04.6]} 130. Ke6 {[%clk 0:00:08]}
130... Bg8+ {[%clk 0:00:05.3]} 131. Ke7 {[%clk 0:00:09.1]} 131... Bh7 {[%clk
0:00:07.2]} 132. Rg3+ {[%clk 0:00:09.6]} 132... Kh8 {[%clk 0:00:09]} 133. Kf7
{[%clk 0:00:10.6]} 133... Bb1 {[%clk 0:00:08.2]} 134. Kf6 {[%clk 0:00:09.5]}
134... Be4 {[%clk 0:00:07.6]} 135. Kg5 {[%clk 0:00:08.6]} 135... Bh7 {[%clk
0:00:07.2]} 136. Kh6 {[%clk 0:00:08.2]} 136... Bg8 {[%clk 0:00:08]} 137. Rc3
{[%clk 0:00:08.9]} 137... Ba2 {[%clk 0:00:05.9]} 138. Rc7 {[%clk 0:00:09.5]}
138... Bg8 {[%clk 0:00:06.4]} 139. Kg6 {[%clk 0:00:10.3]} 139... Bb3 {[%clk
0:00:05.9]} 140. Rc3 {[%clk 0:00:10.7]} 140... Bd5 {[%clk 0:00:06.4]} 141. Rh3+
{[%clk 0:00:11.2]} 141... Kg8 {[%clk 0:00:07.1]} 142. Rh4 {[%clk 0:00:12.6]}
142... Bb3 {[%clk 0:00:06.3]} 143. Rb4 {[%clk 0:00:11.7]} 143... Bc2+ {[%clk
0:00:06.8]} 144. Kf6 {[%clk 0:00:10.3]} 144... Kh8 {[%clk 0:00:06.6]} 145. Rb8+
{[%clk 0:00:09.2]} 145... Kh7 {[%clk 0:00:07.5]} 146. Rb7+ {[%clk 0:00:10.1]}
146... Kh8 {[%clk 0:00:07.6]} 147. Rb8+ {[%clk 0:00:10.1]} 147... Kh7 {[%clk
0:00:08.6]} 148. Rb2 {[%clk 0:00:12]} 148... Bd3 {[%clk 0:00:07.8]} 149. Rd2
{[%clk 0:00:11.9]} 149... Be4 {[%clk 0:00:07.3]} 150. Rd4 {[%clk 0:00:11.8]}
1/2-1/2